bitfinex/quotes_SOLUSD_20250228
["timestamp","ask_amount","ask_price","bid_price","bid_amount"]
[1740715661160,0.03,127.47,127.32,7.8542]
[1740715661458,0.03,127.47,127.32,9.50283704]
[1740715661459,20.84347519,127.47,127.32,9.50283704]
[1740715661664,0.14216157,127.46,127.31,225.9547]
[1740715661963,0.14216157,127.44,127.31,218.1]
[1740715662260,0.14216157,127.44,127.25,1.6449]
[1740715662261,0.14216157,127.42,127.23,142.7532]
[1740715662435,0.14216157,127.37,127.23,6.3162]
[1740715662634,0.81347519,127.36,127.23,226.0225]
[1740715662855,20.0,127.38,127.23,226.0225]
[1740715662856,0.81347519,127.37,127.24,1.79172616]
[1740715663166,0.14216157,127.36,127.23,226.0225]
[1740715663349,0.81347519,127.35,127.23,218.163]
[1740715663552,0.81347519,127.37,127.23,226.0224]
[1740715663858,0.14216157,127.36,127.23,218.163]
[1740715664037,0.14216157,127.34,127.23,0.063]
[1740715664235,0.14216157,127.32,127.23,0.063]
[1740715664470,0.14216157,127.28,127.23,0.063]
[1740715664664,0.14216157,127.26,127.14,132.4]
[1740715664847,0.14216157,127.26,127.09,226.086]
[1740715664848,0.14216157,127.24,127.09,226.086]
[1740715665051,82.8,127.3,127.07,19.6739]
[1740715665052,0.14216157,127.22,127.07,136.5]
[1740715665370,0.81347519,127.21,127.1,20.0]
[1740715665661,0.14216157,127.22,127.07,136.5]
[1740715665968,0.81347519,127.21,127.06,276.77]
[1740715666168,0.81347519,127.21,127.09,20.0]
[1740715666348,0.81347519,127.29,127.15,0.14216157]
[1740715666538,0.81347519,127.29,127.19,0.14216157]
[1740715666737,0.81347519,127.34,127.19,0.14216157]
[1740715666950,0.81347519,127.34,127.22,20.0]
[1740715667153,0.81347519,127.36,127.23,0.14216157]
[1740715667362,0.81347519,127.36,127.21,0.14216157]
[1740715667667,0.81347519,127.36,127.2,0.14216157]
[1740715667969,0.14216157,127.35,127.18,0.14216157]
[1740715668270,0.81347519,127.34,127.22,0.14216157]
[1740715668443,0.81347519,127.34,127.22,8.00246157]
[1740715668946,0.81347519,127.34,127.18,144.3626]
[1740715669142,0.14216157,127.37,127.18,144.3626]
[1740715669444,0.14216157,127.35,127.18,144.3628]
[1740715669643,0.14216157,127.33,127.18,144.3628]
[1740715669844,0.14216157,127.31,127.19,0.14216157]
[1740715670347,0.14216157,127.34,127.19,0.14216157]
[1740715670545,0.14216157,127.32,127.19,8.00426157]
[1740715670746,0.81347519,127.31,127.23,0.14216157]
[1740715671071,0.81347519,127.37,127.23,136.64216157]
[1740715671278,0.81347519,127.37,127.27,0.14216157]
[1740715671467,0.81347519,127.39,127.27,0.14216157]
[1740715671782,0.81347519,127.39,127.3,20.0]
[1740715671962,0.81347519,127.41,127.3,20.0]
[1740715672159,20.0,127.39,127.24,0.14216157]
[1740715672480,0.14216157,127.37,127.24,20.0]
[1740715672675,0.81347519,127.37,127.25,1.79180121]
[1740715672974,0.81347519,127.42,127.25,5.80044333]
[1740715673179,0.14216157,127.41,127.25,136.64216157]
[1740715673387,0.81347519,127.4,127.28,20.0]
[1740715673559,0.81347519,127.42,127.29,0.14216157]
[1740715673964,0.81347519,127.42,127.28,20.0]
[1740715674163,20.81347519,127.42,127.28,20.0]
[1740715674383,0.14216157,127.41,127.28,20.0]
[1740715674600,0.14216157,127.39,127.27,55.35936157]
[1740715674768,0.17216157,127.37,127.24,7.8591]
[1740715674971,0.81347519,127.36,127.23,89.4595]
[1740715675376,0.81347519,127.36,127.26,20.0]
[1740715675589,0.03,127.37,127.27,0.14216157]
[1740715675767,0.03,127.37,127.3,20.0]
[1740715676265,0.03,127.37,127.31,0.14216157]
[1740715676475,0.03,127.37,127.3,156.5]
[1740715676870,0.03,127.37,127.3,20.0]
[1740715677289,0.03,127.37,127.31,0.14216157]
[1740715677481,0.03,127.37,127.31,218.24216157]
[1740715678191,0.03,127.37,127.26,132.46]
[1740715678382,0.03,127.37,127.27,7.8573]
[1740715678568,0.03,127.37,127.28,1.64939063]
[1740715678884,0.03,127.37,127.33,0.14216157]
[1740715679061,0.03,127.37,127.36,20.14216157]
[1740715679269,0.03,127.47,127.37,0.14216157]
[1740715679479,0.03,127.47,127.41,0.14216157]
[1740715679678,16.53805268,127.51,127.41,136.64216157]
[1740715679890,16.53805268,127.51,127.4,156.5]
[1740715680087,0.7479,127.54,127.4,136.5]
[1740715680289,0.7479,127.54,127.38,0.14216157]
[1740715680465,22.52791568,127.59,127.41,7.8481]
[1740715680790,16.35564539,127.59,127.44,20.0]
[1740715680993,20.0,127.53,127.36,7.99386157]
[1740715681181,82.8,127.56,127.42,0.14216157]
[1740715681378,0.03,127.6,127.42,156.64216157]
[1740715681689,0.14216157,127.58,127.35,148.2183721]
[1740715681891,0.14216157,127.56,127.35,144.3522]
[1740715682187,0.14216157,127.51,127.32,218.1]
[1740715682504,0.14216157,127.46,127.3,136.5]
[1740715682876,20.0,127.47,127.31,1.64865365]
[1740715683076,20.0,127.47,127.33,20.0]
[1740715683389,0.14216157,127.46,127.33,136.5]
[1740715683574,20.0,127.47,127.37,0.14216157]
[1740715683779,20.0,127.53,127.37,136.64216157]
[1740715683978,20.0,127.52,127.37,136.64216157]
[1740715684176,82.8,127.55,127.41,0.14216157]
[1740715684373,141.0075,127.56,127.37,218.1]
[1740715684572,0.14216157,127.5,127.34,7.8529]
[1740715684773,0.14216157,127.5,127.35,0.14216157]
[1740715684992,20.14216157,127.46,127.32,132.42]
[1740715685189,20.14216157,127.46,127.28,218.1]
[1740715685393,0.14216157,127.41,127.24,7.8591]
[1740715685582,20.14216157,127.41,127.24,144.3591]
[1740715685778,0.14216157,127.39,127.23,6.0154]
[1740715686086,0.14216157,127.39,127.22,276.7799]
[1740715686290,0.14216157,127.39,127.25,20.0]
[1740715686490,0.14216157,127.39,127.22,140.2799]
[1740715686693,0.14216157,127.39,127.21,0.063]
[1740715686694,0.14216157,127.34,127.21,0.063]
[1740715686872,102.94216157,127.34,127.21,0.063]
[1740715687591,0.14216157,127.29,127.1,3.8974789]
[1740715687789,0.14216157,127.24,127.12,0.063]
[1740715688103,0.14216157,127.24,127.12,20.063]
[1740715688287,84.23355527,127.33,127.12,156.563]
[1740715688489,82.8,127.33,127.14,0.14216157]
[1740715688806,0.6849,127.39,127.19,0.14216157]
[1740715688970,0.6849,127.39,127.23,0.14216157]
[1740715689171,16.57602896,127.41,127.27,0.14216157]
[1740715689377,16.57602896,127.41,127.28,1.64919992]
[1740715689714,16.57602896,127.41,127.28,138.29109342]
[1740715690008,16.57602896,127.41,127.29,0.14216157]
[1740715690197,16.57602896,127.41,127.32,20.14216157]
[1740715690503,11.41173886,127.44,127.32,156.64216157]
[1740715690800,11.41173886,127.44,127.32,164.49586157]
[1740715691000,16.57602896,127.49,127.32,164.49586157]
[1740715691226,16.57602896,127.49,127.33,0.14216157]
[1740715691688,16.57602896,127.49,127.37,0.14216157]
[1740715691998,16.57602896,127.49,127.41,0.14216157]
[1740715692192,16.57602896,127.49,127.45,0.14216157]
[1740715692504,16.57602896,127.55,127.45,0.14216157]
[1740715692680,16.57602896,127.55,127.45,144.48806157]
[1740715692869,16.57602896,127.55,127.42,0.14216157]
[1740715693069,16.57602896,127.55,127.42,136.5]
[1740715693483,16.57602896,127.55,127.39,0.14216157]
[1740715693670,0.14216157,127.51,127.36,136.5]
[1740715693879,0.14216157,127.51,127.33,142.9567]
[1740715694285,20.0,127.47,127.3,7.8548]
[1740715694502,0.14216157,127.46,127.29,268.92]
[1740715694699,0.14216157,127.46,127.29,276.776]
[1740715694894,82.8,127.5,127.31,0.14216157]
[1740715695095,82.8,127.54,127.33,0.14216157]
[1740715695301,20.0,127.51,127.37,0.14216157]
[1740715695491,0.14216157,127.5,127.37,0.14216157]
[1740715695692,0.14216157,127.46,127.29,358.376]
[1740715695910,0.14216157,127.46,127.3,1.64873689]
[1740715696102,82.8,127.5,127.33,20.0]
[1740715696399,0.14216157,127.49,127.34,0.14216157]
[1740715696703,7.8394,127.56,127.36,0.14216157]
[1740715696908,82.8,127.57,127.4,0.14216157]
[1740715697111,46.99791084,127.58,127.4,138.28964788]
[1740715697288,30.4790933,127.58,127.4,136.64216157]
[1740715697484,30.4790933,127.58,127.42,0.14216157]
[1740715697685,30.4790933,127.58,127.42,136.64216157]
[1740715698008,0.6849,127.58,127.42,136.64216157]
[1740715698395,20.0,127.55,127.41,1.6473901]
[1740715698593,20.0,127.51,127.37,7.8509]
[1740715698796,0.14216157,127.5,127.37,144.3509]
[1740715699102,0.14216157,127.5,127.37,136.5]
[1740715699321,20.14216157,127.5,127.35,7.8523]
[1740715699614,20.0,127.5,127.36,1.6483086]
[1740715699909,115.94484772,127.58,127.44,0.14216157]
[1740715700092,33.14484772,127.58,127.47,20.0]
[1740715700491,46.40033839,127.58,127.47,20.0]
[1740715700688,20.0,127.55,127.44,136.64216157]
[1740715701002,0.14216157,127.54,127.42,0.14216157]
[1740715701321,0.14216157,127.54,127.41,225.9486]
[1740715701499,20.0,127.55,127.42,0.14216157]
[1740715701692,20.0,127.55,127.45,0.14216157]
[1740715701900,140.2976,127.59,127.45,156.64216157]
[1740715702214,20.0,127.56,127.45,20.0]
[1740715702782,0.14216157,127.55,127.41,218.1]
[1740715702987,0.14216157,127.52,127.38,218.1]
[1740715703220,20.0,127.53,127.39,29.12225439]
[1740715703418,82.8,127.58,127.43,0.14216157]
[1740715703612,16.55067987,127.58,127.46,20.0]
[1740715704142,16.55067987,127.58,127.47,0.14216157]
[1740715704417,16.55067987,127.58,127.5,20.0]
[1740715704717,16.55067987,127.58,127.53,0.14216157]
[1740715704920,16.55067987,127.58,127.52,144.3419]
[1740715705119,0.03,127.63,127.5,156.5]
[1740715705321,0.03,127.63,127.5,0.14216157]
[1740715705520,0.03,127.63,127.53,0.14216157]
[1740715705812,0.03,127.63,127.53,136.64216157]
[1740715706115,0.03,127.63,127.53,20.0]
[1740715706418,0.14216157,127.62,127.5,136.5]
[1740715706617,0.14216157,127.62,127.49,7.98576157]
[1740715706923,20.0,127.61,127.49,7.8436]
[1740715707216,0.03,127.63,127.52,20.0]
[1740715707910,0.03,127.63,127.53,0.14216157]
[1740715708100,0.03,127.63,127.52,136.5]
[1740715708296,20.03,127.6,127.52,136.5]
[1740715708895,0.03,127.6,127.52,136.5]
[1740715709105,0.14216157,127.59,127.46,136.5]
[1740715709292,7.8671,127.6,127.47,7.8447]
[1740715709495,20.0,127.57,127.45,142.7572]
[1740715709723,20.0,127.57,127.45,6.2572]
[1740715710318,20.0,127.57,127.45,14.103]
[1740715710713,20.0,127.57,127.45,6.2572]
[1740715710922,20.03,127.6,127.48,20.0]
[1740715711225,0.03,127.6,127.49,1.78858182]
[1740715711415,0.03,127.6,127.53,0.14216157]
[1740715711614,0.03,127.6,127.53,136.5]
[1740715712125,0.03,127.6,127.45,224.3572]
[1740715712309,0.03,127.6,127.46,1.64648647]
[1740715712510,0.03,127.6,127.49,20.0]
[1740715712702,0.03,127.6,127.51,0.14216157]
[1740715712907,0.03,127.6,127.55,0.14216157]
[1740715713117,0.03,127.6,127.57,0.14216157]
[1740715713305,0.03,127.6,127.55,136.5]
[1740715713814,0.03,127.6,127.58,20.0]
[1740715714017,0.03,127.6,127.59,0.14216157]
[1740715714522,0.03,127.6,127.58,0.14216157]
[1740715714728,0.03,127.6,127.58,136.64216157]
[1740715714924,0.03,127.6,127.59,7.97976157]
[1740715715116,0.03,127.6,127.59,9.62452442]
[1740715715304,0.03,127.6,127.59,7.97976157]
[1740715715631,0.03,127.63,127.62,20.14216157]
[1740715715929,0.03,127.63,127.62,156.64216157]
[1740715716098,0.03,127.73,127.63,0.14216157]
[1740715716307,0.03,127.73,127.63,136.64216157]
[1740715716511,0.03,127.73,127.63,138.28686661]
[1740715716740,0.03,127.73,127.63,136.5]
[1740715716905,0.03,127.73,127.64,0.14216157]
[1740715717117,0.03,127.73,127.64,136.5]
[1740715717320,0.03,127.73,127.62,20.0]
[1740715717546,0.14216157,127.7,127.58,142.5434]
[1740715717832,20.14216157,127.7,127.55,351.8609]
[1740715718042,20.0,127.7,127.56,1.64580127]
[1740715718221,20.0,127.7,127.58,20.0]
[1740715718420,0.03,127.71,127.58,156.5]
[1740715718613,0.03,127.71,127.58,20.0]
[1740715719016,0.03,127.71,127.62,0.14216157]
[1740715719232,0.03,127.71,127.65,20.0]
[1740715719431,0.03,127.71,127.66,0.14216157]
[1740715720135,0.03,127.71,127.66,138.28641369]
[1740715720444,0.03,127.82,127.7,0.14216157]
[1740715720632,0.03,127.82,127.68,0.14216157]
[1740715720831,0.03,127.82,127.71,20.0]
[1740715721048,0.03,127.82,127.72,1.78524732]
[1740715721333,0.03,127.82,127.76,0.14216157]
[1740715721537,0.03,127.82,127.75,156.5]
[1740715721848,0.03,127.82,127.69,140.39580282]
[1740715722048,0.03,127.82,127.66,213.78]
[1740715722049,0.03,127.82,127.66,350.28]
[1740715722214,0.17216157,127.82,127.66,132.18]
[1740715722413,0.17216157,127.82,127.65,136.5]
[1740715722636,0.03,127.71,127.65,136.5]
[1740715722814,0.03,127.71,127.65,20.0]
[1740715723016,0.03,127.71,127.62,223.48657981]
[1740715723216,0.03,127.71,127.63,1.64459294]
[1740715723519,0.03,127.71,127.64,0.14216157]
[1740715723724,0.03,127.71,127.67,20.0]
[1740715724244,0.03,127.71,127.64,136.5]
[1740715724737,0.03,127.79,127.67,20.0]
[1740715724934,0.03,127.79,127.68,1.78539923]
[1740715725128,0.03,127.79,127.72,0.14216157]
[1740715725340,0.03,127.79,127.74,0.14216157]
[1740715725525,0.03,127.79,127.78,0.14216157]
[1740715725846,0.03,127.79,127.78,136.64216157]
[1740715726434,0.03,127.82,127.81,20.14216157]
[1740715726644,0.03,127.82,127.81,158.28411215]
[1740715726940,0.03,127.82,127.81,156.64216157]
[1740715727140,0.03,127.95,127.82,0.14216157]
[1740715727437,0.03,127.95,127.86,0.14216157]
[1740715727737,0.03,127.95,127.89,20.0]
[1740715727919,0.03,127.95,127.86,136.64216157]
[1740715728119,0.03,127.95,127.89,20.0]
[1740715728327,0.03,127.95,127.9,0.14216157]
[1740715728522,0.03,127.95,127.9,136.64216157]
[1740715728836,0.03,127.95,127.94,0.14216157]
[1740715729044,0.063,128.01,127.99,20.0]
[1740715729535,0.063,128.01,128.0,0.14216157]
[1740715729741,0.063,128.01,128.0,136.64216157]
[1740715729952,0.063,128.01,127.98,0.14216157]
[1740715730124,0.063,128.01,128.0,0.14216157]
[1740715730321,0.063,128.01,127.98,136.5]
[1740715730643,0.063,128.01,127.99,0.14216157]
[1740715730817,0.063,128.01,127.94,0.14216157]
[1740715731017,0.063,128.01,127.98,0.14216157]
[1740715731632,0.063,128.01,128.0,20.14216157]
[1740715732255,0.063,128.01,127.93,1.63993946]
[1740715732433,0.063,128.01,127.91,132.02]
[1740715732633,0.063,128.01,127.84,6.2528]
[1740715732834,0.063,128.01,127.85,1.64139008]
[1740715733026,0.063,128.01,127.85,138.14139008]
[1740715733553,0.14216157,128.0,127.85,138.14139008]
[1740715733752,20.14216157,128.0,127.84,142.7528]
[1740715733936,20.14216157,128.0,127.84,6.2528]
[1740715734250,0.14216157,127.95,127.78,3.99841523]
[1740715734446,0.14216157,127.99,127.79,1.64271195]
[1740715734634,0.063,128.01,127.79,219.74271195]
[1740715734943,20.063,128.01,127.84,0.063]
[1740715735147,0.14216157,127.96,127.84,0.063]
[1740715735349,20.0,127.92,127.84,0.063]
[1740715735539,7.8148,127.97,127.84,136.563]
[1740715735848,0.14216157,127.95,127.84,20.063]
[1740715736041,20.0,127.96,127.85,0.14216157]
[1740715736243,0.14216157,127.95,127.84,0.063]
[1740715736428,20.0,127.96,127.84,136.563]
[1740715736627,7.8754,128.01,127.88,0.14216157]
[1740715736828,7.8754,128.01,127.87,156.5]
[1740715737150,7.8754,128.01,127.84,0.063]
[1740715737151,7.8149,127.96,127.84,0.063]
[1740715737332,20.14216157,127.92,127.84,0.063]
[1740715737851,7.8125,128.0,127.84,136.563]
[1740715738022,20.0,127.97,127.84,0.063]
[1740715738222,20.0,127.96,127.84,0.063]
[1740715738444,0.14216157,127.95,127.84,0.063]
[1740715738643,0.14216157,127.9,127.84,0.063]
[1740715739025,20.14216157,127.9,127.72,131.94]
[1740715739232,0.14216157,127.88,127.72,277.9125878]
[1740715739426,0.14216157,127.88,127.75,20.0]
[1740715739650,0.14216157,127.88,127.75,156.5]
[1740715739852,7.95946157,127.92,127.76,0.14216157]
[1740715740027,7.95946157,127.92,127.76,136.64216157]
[1740715740232,20.14216157,127.88,127.72,276.2692]
[1740715740428,20.14216157,127.88,127.72,131.94]
[1740715740633,0.14216157,127.86,127.71,0.063]
[1740715740829,82.8,127.85,127.71,0.063]
[1740715741031,82.8,127.91,127.71,218.163]
[1740715741343,102.3389,127.95,127.76,0.14216157]
[1740715741550,110.1565,127.94,127.76,7.96906157]
[1740715741735,82.8,127.93,127.74,11.88451348]
[1740715741942,0.6219,127.98,127.77,6.48336157]
[1740715742258,7.8143,127.97,127.79,0.14216157]
[1740715742433,110.1501,127.97,127.79,0.14216157]
[1740715742754,90.6143,127.97,127.8,0.14216157]
[1740715742928,7.8125,128.0,127.82,0.14216157]
[1740715743125,16.28442637,128.01,127.83,1.78385645]
[1740715743440,0.063,128.01,127.85,0.14216157]
[1740715743644,0.063,128.01,127.88,6.5879]
[1740715743846,0.063,128.01,127.89,0.14216157]
[1740715744055,0.063,128.01,127.93,0.14216157]
[1740715744236,0.063,128.01,127.95,0.14216157]
[1740715744440,0.063,128.09,127.97,0.14216157]
[1740715744642,0.063,128.09,127.99,0.14216157]
[1740715744946,0.063,128.09,128.01,0.14216157]
[1740715745553,0.063,128.09,128.01,7.95396157]
[1740715745739,0.063,128.09,128.01,0.14216157]
[1740715746351,0.063,128.09,128.01,138.28196596]
[1740715747350,0.063,128.09,127.97,268.4]
[1740715747556,0.063,128.09,127.97,139.7142]
[1740715747755,0.063,128.09,127.97,133.54019133]
[1740715747955,0.063,128.09,127.94,136.5]
[1740715748255,0.063,128.09,127.92,138.0027]
[1740715748631,0.063,128.09,127.93,1.64056825]
[1740715749147,0.063,128.09,127.92,149.69939957]
[1740715749454,0.063,128.09,127.95,0.14216157]
[1740715749748,0.14216157,128.08,127.92,83.1027]
[1740715750068,0.14216157,128.08,127.92,229.0609219]
[1740715750249,0.063,128.09,127.93,0.14216157]
[1740715750457,0.14216157,128.08,127.92,1.5027]
[1740715751029,0.14216157,128.03,127.89,139.6592]
[1740715751351,20.0,127.99,127.89,131.84]
[1740715751556,0.14216157,127.98,127.88,6.5879]
[1740715751733,20.0,127.99,127.88,6.5879]
[1740715752133,82.8,128.03,127.91,20.0]
[1740715752360,82.8,128.08,127.92,0.14216157]
[1740715752542,0.03,128.1,127.96,0.14216157]
[1740715752742,0.03,128.1,128.0,0.14216157]
[1740715752953,0.03,128.1,128.04,0.14216157]
[1740715753154,0.03,128.1,128.04,20.0]
[1740715753452,0.03,128.1,128.05,0.14216157]
[1740715753633,0.03,128.1,128.08,20.0]
[1740715753839,0.03,128.1,128.05,20.14216157]
[1740715754164,0.03,128.1,128.05,20.0]
[1740715754357,20.03,128.1,128.01,20.0]
[1740715754661,0.20516157,128.09,127.95,14.0094]
[1740715754837,0.063,128.09,127.99,0.14216157]
[1740715755160,0.20516157,128.09,127.99,20.0]
[1740715755386,8.01236157,128.09,127.95,14.0094]
[1740715755536,0.063,128.09,127.95,6.1939]
[1740715755739,0.063,128.09,127.96,1.78249502]
[1740715756073,0.063,128.09,127.96,219.88249502]
[1740715756366,0.063,128.09,128.0,0.14216157]
[1740715756579,0.063,128.09,128.0,138.28165951]
[1740715757061,0.063,128.09,128.03,20.0]
[1740715757270,0.063,128.09,127.96,222.05300313]
[1740715757453,0.20516157,128.09,127.95,150.5094]
[1740715757649,0.063,128.09,127.98,20.0]
[1740715757868,0.063,128.09,128.0,0.14216157]
[1740715758074,0.063,128.09,128.02,0.14216157]
[1740715758365,0.063,128.09,128.04,0.14216157]
[1740715758562,0.063,128.09,128.04,20.14216157]
[1740715759464,20.0,128.17,128.06,20.0]
[1740715759768,0.14216157,128.19,128.06,20.0]
[1740715760075,7.8627,128.21,128.07,20.0]
[1740715760444,27.3619,128.21,128.0,140.38280172]
[1740715760664,0.063,128.21,128.0,223.62232833]
[1740715760962,0.063,128.21,128.05,0.14216157]
[1740715761151,0.063,128.21,128.09,20.14216157]
[1740715761347,0.063,128.21,128.11,0.14216157]
[1740715761554,0.063,128.21,128.13,27.45806157]
[1740715761757,0.063,128.21,128.14,0.14216157]
[1740715761951,0.063,128.21,128.13,136.5]
[1740715762150,0.063,128.21,128.09,0.14216157]
[1740715762350,0.063,128.21,128.09,165.60515734]
[1740715762556,0.063,128.21,128.12,20.0]
[1740715762866,0.14216157,128.2,128.06,144.3088]
[1740715763172,0.14216157,128.2,128.05,139.5892]
[1740715763467,0.14216157,128.2,128.06,7.8088]
[1740715763671,8.00486157,128.21,128.07,0.14216157]
[1740715763868,20.20516157,128.21,128.06,7.8088]
[1740715764054,0.14216157,128.17,128.03,1.6164]
[1740715764370,20.14216157,128.17,128.01,144.3113]
[1740715764565,0.14216157,128.15,127.99,13.8688]
[1740715764871,0.14216157,128.1,127.99,6.0558]
[1740715765571,0.14216157,128.06,127.97,131.72]
[1740715765949,0.14216157,128.06,127.93,14.3848]
[1740715766274,0.14216157,128.06,127.96,20.0]
[1740715766470,0.14216157,128.06,127.93,6.5682]
[1740715766779,0.14216157,128.01,127.89,131.7]
[1740715766952,0.14216157,128.01,127.92,20.0]
[1740715767152,20.0,128.02,127.92,20.0]
[1740715767467,0.14216157,128.01,127.89,131.7]
[1740715767665,7.95406157,128.01,127.89,131.7]
[1740715767865,0.14216157,127.97,127.87,6.5858]
[1740715768061,0.14216157,127.97,127.84,7.8217]
[1740715768261,0.14216157,127.97,127.81,139.8763]
[1740715768569,0.14216157,127.92,127.79,0.063]
[1740715769046,82.94216157,127.92,127.79,0.063]
[1740715769251,0.14216157,127.87,127.79,0.063]
[1740715769667,20.0,127.88,127.79,0.063]
[1740715769871,0.6219,127.96,127.83,0.14216157]
[1740715769872,7.8155,127.95,127.83,0.14216157]
[1740715770173,90.6137,127.98,127.83,0.14216157]
[1740715770347,33.28186103,128.0,127.83,136.64216157]
[1740715770550,24.59705532,128.0,127.86,20.0]
[1740715770877,16.57081297,128.0,127.87,0.14216157]
[1740715771173,16.57081297,128.0,127.93,0.14216157]
[1740715771377,16.49780571,128.05,127.95,20.0]
[1740715771555,16.49780571,128.05,127.96,0.14216157]
[1740715771753,16.49780571,128.05,127.94,7.8159]
[1740715772077,20.14216157,128.04,127.9,7.8186]
[1740715772248,0.14216157,128.01,127.9,0.14216157]
[1740715772669,82.8,128.06,127.92,0.14216157]
[1740715772862,7.8376,128.09,127.96,0.14216157]
[1740715773077,0.03,128.09,127.98,20.0]
[1740715773476,0.03,128.09,127.99,1.78237284]
[1740715773681,0.03,128.09,128.02,20.14216157]
[1740715773969,0.03,128.09,128.02,27.95336157]
[1740715774177,0.03,128.09,128.03,1.6396501]
[1740715774369,0.03,128.09,128.07,0.14216157]
[1740715775581,0.03,128.09,128.08,0.14216157]
[1740715775757,0.03,128.09,128.04,1.63884448]
[1740715775957,0.03,128.09,128.05,0.14216157]
[1740715776159,0.03,128.09,128.03,6.4337]
[1740715776355,0.03,128.09,128.01,9.3961]
[1740715776552,0.03,128.09,128.01,1.5847]
[1740715776775,0.03,128.09,127.96,142.6402]
[1740715776974,0.03,128.09,127.97,1.63999889]
[1740715777164,0.03,128.09,127.97,138.13999889]
[1740715777689,0.03,128.09,128.0,20.0]
[1740715777868,0.03,128.09,128.01,20.0]
[1740715778170,0.17216157,128.09,128.01,20.0]
[1740715778377,20.03,128.09,127.97,7.8143]
[1740715778575,20.0,128.08,127.98,0.14216157]
[1740715778775,0.14216157,128.07,127.93,227.5548]
[1740715778979,102.94216157,128.07,127.89,6.5321]
[1740715779150,0.14216157,128.02,127.9,7.8186]
[1740715779350,20.0,128.03,127.93,20.0]
[1740715779774,0.14216157,128.02,127.89,6.5321]
[1740715779954,0.14216157,128.02,127.88,139.5596]
[1740715780154,0.14216157,128.02,127.89,0.14216157]
[1740715780384,0.14216157,128.02,127.89,136.5]
[1740715780676,0.14216157,128.02,127.85,87.02166641]
[1740715780677,20.14216157,127.98,127.84,7.8222]
[1740715780881,20.0,127.97,127.8,136.5]
[1740715781186,0.14216157,127.96,127.79,144.3882]
[1740715781391,0.14216157,127.94,127.79,0.063]
[1740715781557,0.14216157,127.89,127.79,0.063]
[1740715782094,0.14216157,127.87,127.79,0.063]
[1740715782579,0.14216157,127.85,127.79,0.063]
[1740715783382,0.14216157,127.91,127.79,0.063]
[1740715783583,0.14216157,127.86,127.79,0.063]
[1740715783882,20.0,127.83,127.79,0.063]
[1740715784057,82.8,127.86,127.79,0.063]
[1740715784259,0.14216157,127.85,127.79,0.063]
[1740715784455,20.0,127.83,127.79,0.063]
[1740715785781,0.14216157,127.82,127.79,0.063]
[1740715786414,0.14216157,127.82,127.76,0.063]
[1740715787190,0.14216157,127.77,127.76,0.063]
[1740715787361,82.94216157,127.77,127.76,0.063]
[1740715788184,0.14216157,127.79,127.76,0.063]
[1740715788679,20.0,127.8,127.76,0.063]
[1740715789194,20.14216157,127.79,127.76,0.063]
[1740715790484,20.0,127.79,127.76,0.063]
[1740715790896,82.8,127.82,127.76,0.063]
[1740715791190,20.0,127.79,127.76,0.063]
[1740715791589,0.14216157,127.78,127.76,0.063]
[1740715792590,0.14216157,127.81,127.76,0.063]
[1740715793199,131.86,127.83,127.76,0.063]
[1740715793401,20.0,127.8,127.76,0.063]
[1740715793906,20.14216157,127.79,127.76,0.063]
[1740715794685,0.14216157,127.81,127.76,0.063]
[1740715794905,214.78,127.91,127.76,0.063]
[1740715795085,0.50024047,127.9,127.76,0.063]
[1740715795282,20.0,127.88,127.76,0.063]